[Event "Titled Tuesday Blitz May 9 Early 2023"]
[White "Janaszak, Dawid"]
[Black "Van Dael, Siem"]
[WhiteFideId "1119206"]
[BlackFideId "1049771"]
[WhiteElo "2220"]
[BlackElo "2336"]
[Result "1/2-1/2"]
[Round "05"]
[TimeControl "180+2"]
[Date "2023.05.09"]
[WhiteClock "0:00:15"]
[BlackClock "0:00:02"]

1. e4 {[%clk 0:03:00]}  e5 {[%clk 0:02:55]} 2. Nf3 {[%clk 0:03:01]}  Nc6 {[%clk 0:02:52]} 3. Bb5 {[%clk 0:03:00]}  a6 {[%clk 0:02:44]} 4. Ba4 {[%clk 0:03:00]}  Nf6 {[%clk 0:02:43]} 5. d3 {[%clk 0:03:00]}  b5 {[%clk 0:02:42]} 6. Bb3 {[%clk 0:03:00]}  Bc5 {[%clk 0:02:43]} 7. c3 {[%clk 0:03:00]}  O-O {[%clk 0:02:42]} 8. O-O {[%clk 0:02:58]}  h6 {[%clk 0:02:42]} 9. a4 {[%clk 0:02:56]}  Rb8 {[%clk 0:02:39]} 10. Bc2 {[%clk 0:02:55]}  d6 {[%clk 0:02:29]} 11. h3 {[%clk 0:02:54]}  Bb6 {[%clk 0:02:21]} 12. axb5 {[%clk 0:02:52]}  axb5 {[%clk 0:02:19]} 13. Nbd2 {[%clk 0:02:50]}  b4 {[%clk 0:02:11]} 14. Nc4 {[%clk 0:02:49]}  bxc3 {[%clk 0:02:09]} 15. bxc3 {[%clk 0:02:48]}  Be6 {[%clk 0:01:59]} 16. Nxb6 {[%clk 0:02:46]}  Rxb6 {[%clk 0:02:00]} 17. d4 {[%clk 0:02:45]}  exd4 {[%clk 0:01:59]} 18. cxd4 {[%clk 0:02:45]}  Nb4 {[%clk 0:01:54]} 19. Bb1 {[%clk 0:02:40]}  Bc4 {[%clk 0:01:47]} 20. Re1 {[%clk 0:02:39]}  Re8 {[%clk 0:01:24]} 21. d5 {[%clk 0:02:33]}  c6 {[%clk 0:01:07]} 22. Be3 {[%clk 0:02:18]}  c5 {[%clk 0:01:05]} 23. Bf4 {[%clk 0:02:03]}  Nd7 {[%clk 0:00:50]} 24. Bg3 {[%clk 0:01:46]}  Qf6 {[%clk 0:00:37]} 25. Ra7 {[%clk 0:01:42]}  Bb5 {[%clk 0:00:27]} 26. Qd2 {[%clk 0:01:31]}  g5 {[%clk 0:00:09]} 27. Nh2 {[%clk 0:01:26]}  Ne5 {[%clk 0:00:08]} 28. Bxe5 {[%clk 0:01:20]}  Qxe5 {[%clk 0:00:09]} 29. Ng4 {[%clk 0:01:20]}  Qg7 {[%clk 0:00:09]} 30. Ne3 {[%clk 0:01:11]}  Qd4 {[%clk 0:00:08]} 31. Qc1 {[%clk 0:01:07]}  Nd3 {[%clk 0:00:07]} 32. Bxd3 {[%clk 0:01:06]}  Qxd3 {[%clk 0:00:07]} 33. Nf5 {[%clk 0:01:06]}  Rxe4 {[%clk 0:00:03]} 34. Nxh6+ {[%clk 0:01:05]}  Kf8 {[%clk 0:00:01]} 35. Rxf7+ {[%clk 0:01:04]}  Ke8 {[%clk 0:00:02]} 36. Rxe4+ {[%clk 0:01:02]}  Qxe4 {[%clk 0:00:03]} 37. Qxg5 {[%clk 0:01:01]}  Qe1+ {[%clk 0:00:02]} 38. Kh2 {[%clk 0:01:02]}  Qe5+ {[%clk 0:00:02]} 39. Qg3 {[%clk 0:00:58]}  Qxg3+ {[%clk 0:00:02]} 40. Kxg3 {[%clk 0:00:58]}  c4 {[%clk 0:00:03]} 41. Rc7 {[%clk 0:00:57]}  Kd8 {[%clk 0:00:04]} 42. Ra7 {[%clk 0:00:55]}  c3 {[%clk 0:00:04]} 43. Ra3 {[%clk 0:00:55]}  c2 {[%clk 0:00:04]} 44. Rc3 {[%clk 0:00:55]}  Ba4 {[%clk 0:00:04]} 45. f3 {[%clk 0:00:47]}  Rb5 {[%clk 0:00:03]} 46. Nf5 {[%clk 0:00:42]}  Rc5 {[%clk 0:00:03]} 47. Rxc2 {[%clk 0:00:34]}  Rxc2 {[%clk 0:00:03]} 48. Nxd6 {[%clk 0:00:35]}  Bb3 {[%clk 0:00:04]} 49. Ne4 {[%clk 0:00:34]}  Bxd5 {[%clk 0:00:04]} 50. Nf6 {[%clk 0:00:34]}  Be6 {[%clk 0:00:04]} 51. Ne4 {[%clk 0:00:35]}  Ke7 {[%clk 0:00:04]} 52. h4 {[%clk 0:00:34]}  Bd5 {[%clk 0:00:05]} 53. Ng5 {[%clk 0:00:34]}  Ra2 {[%clk 0:00:05]} 54. Nh3 {[%clk 0:00:35]}  Bc4 {[%clk 0:00:05]} 55. Nf4 {[%clk 0:00:36]}  Bf1 {[%clk 0:00:05]} 56. Kh3 {[%clk 0:00:34]}  Kf7 {[%clk 0:00:05]} 57. Kg3 {[%clk 0:00:31]}  Rb2 {[%clk 0:00:05]} 58. Kh3 {[%clk 0:00:31]}  Rb4 {[%clk 0:00:05]} 59. Kg3 {[%clk 0:00:31]}  Rb3 {[%clk 0:00:05]} 60. Nh3 {[%clk 0:00:31]}  Rb2 {[%clk 0:00:05]} 61. Nf4 {[%clk 0:00:32]}  Bc4 {[%clk 0:00:05]} 62. Kg4 {[%clk 0:00:29]}  Kf6 {[%clk 0:00:05]} 63. g3 {[%clk 0:00:28]}  Ke5 {[%clk 0:00:05]} 64. Ng6+ {[%clk 0:00:28]}  Kd4 {[%clk 0:00:05]} 65. h5 {[%clk 0:00:28]}  Ke3 {[%clk 0:00:06]} 66. h6 {[%clk 0:00:27]}  Bg8 {[%clk 0:00:05]} 67. Nf8 {[%clk 0:00:24]}  Rb7 {[%clk 0:00:05]} 68. f4 {[%clk 0:00:20]}  Kf2 {[%clk 0:00:04]} 69. Ng6 {[%clk 0:00:17]}  Bh7 {[%clk 0:00:04]} 70. Ne5 {[%clk 0:00:16]}  Rb3 {[%clk 0:00:04]} 71. Kg5 {[%clk 0:00:16]}  Rxg3+ {[%clk 0:00:04]} 72. Kf6 {[%clk 0:00:17]}  Ke3 {[%clk 0:00:04]} 73. Nf7 {[%clk 0:00:15]}  Kxf4 {[%clk 0:00:03]} 74. Nd6 {[%clk 0:00:15]}  Rg6+ {[%clk 0:00:04]} 75. Ke7 {[%clk 0:00:14]}  Rxh6 {[%clk 0:00:04]} 76. Nf7 {[%clk 0:00:14]}  Ra6 {[%clk 0:00:03]} 77. Nd6 {[%clk 0:00:15]}  Bf5 {[%clk 0:00:02]} 78. Nb5 {[%clk 0:00:13]}  Ke5 {[%clk 0:00:02]} 79. Nc7 {[%clk 0:00:14]}  Ra7 {[%clk 0:00:03]} 80. Kd8 {[%clk 0:00:15]}  Kd6 {[%clk 0:00:03]} 81. Nb5+ {[%clk 0:00:14]}  Kc6 {[%clk 0:00:02]} 82. Nxa7+ {[%clk 0:00:15]} 1/2-1/2


[Site "https://www.chess.com"]

[Event "Titled Tuesday Blitz May 9 Early 2023"]
[White "Golubev, Mikhail"]
[Black "MKlose11"]
[WhiteFideId "14100983"]
[WhiteElo "2374"]
[BlackElo "2565"]
[Result "0-1"]
[Round "05"]
[TimeControl "180+2"]
[Date "2023.05.09"]
[WhiteClock "0:00:00"]
[BlackClock "0:00:02"]

1. e4 {[%clk 0:03:00]}  e6 {[%clk 0:02:34]} 2. d4 {[%clk 0:02:59]}  d5 {[%clk 0:02:33]} 3. Nc3 {[%clk 0:03:00]}  Bb4 {[%clk 0:02:30]} 4. e5 {[%clk 0:02:59]}  Ne7 {[%clk 0:02:31]} 5. a3 {[%clk 0:03:00]}  Bxc3+ {[%clk 0:02:31]} 6. bxc3 {[%clk 0:03:00]}  b6 {[%clk 0:02:32]} 7. Qg4 {[%clk 0:02:59]}  Ng6 {[%clk 0:02:32]} 8. h4 {[%clk 0:02:52]}  h5 {[%clk 0:02:31]} 9. Qg3 {[%clk 0:02:51]}  Ba6 {[%clk 0:02:31]} 10. Bg5 {[%clk 0:02:46]}  Qd7 {[%clk 0:02:31]} 11. Bxa6 {[%clk 0:02:37]}  Nxa6 {[%clk 0:02:32]} 12. Ne2 {[%clk 0:02:37]}  Nb8 {[%clk 0:02:26]} 13. Qf3 {[%clk 0:02:28]}  Ne7 {[%clk 0:02:09]} 14. Ng3 {[%clk 0:02:25]}  g6 {[%clk 0:02:05]} 15. O-O {[%clk 0:02:19]}  Nbc6 {[%clk 0:02:03]} 16. c4 {[%clk 0:02:12]}  O-O-O {[%clk 0:01:41]} 17. cxd5 {[%clk 0:02:03]}  Qxd5 {[%clk 0:01:40]} 18. Ne4 {[%clk 0:01:16]}  Nxd4 {[%clk 0:01:09]} 19. Qxf7 {[%clk 0:01:09]}  Qxe4 {[%clk 0:01:04]} 20. Bxe7 {[%clk 0:01:05]}  Rd7 {[%clk 0:00:52]} 21. Rad1 {[%clk 0:01:03]}  Qf5 {[%clk 0:00:37]} 22. Qxf5 {[%clk 0:00:58]}  gxf5 {[%clk 0:00:37]} 23. Bf6 {[%clk 0:00:50]}  Rg8 {[%clk 0:00:36]} 24. c4 {[%clk 0:00:31]}  Rg4 {[%clk 0:00:35]} 25. Kh2 {[%clk 0:00:18]}  Nc6 {[%clk 0:00:26]} 26. Rxd7 {[%clk 0:00:14]}  Kxd7 {[%clk 0:00:27]} 27. Rd1+ {[%clk 0:00:12]}  Kc8 {[%clk 0:00:27]} 28. Rc1 {[%clk 0:00:12]}  Re4 {[%clk 0:00:22]} 29. f3 {[%clk 0:00:12]}  Re3 {[%clk 0:00:20]} 30. c5 {[%clk 0:00:12]}  Kb7 {[%clk 0:00:18]} 31. cxb6 {[%clk 0:00:12]}  axb6 {[%clk 0:00:19]} 32. Kg3 {[%clk 0:00:12]}  Re2 {[%clk 0:00:14]} 33. Rc3 {[%clk 0:00:11]}  Nd4 {[%clk 0:00:13]} 34. a4 {[%clk 0:00:10]}  c5 {[%clk 0:00:13]} 35. Bg5 {[%clk 0:00:09]}  Kc6 {[%clk 0:00:13]} 36. Bf4 {[%clk 0:00:09]}  Kd5 {[%clk 0:00:12]} 37. Ra3 {[%clk 0:00:09]}  Rb2 {[%clk 0:00:12]} 38. a5 {[%clk 0:00:08]}  bxa5 {[%clk 0:00:11]} 39. Bh6 {[%clk 0:00:07]}  Rb5 {[%clk 0:00:10]} 40. Kf4 {[%clk 0:00:07]}  c4 {[%clk 0:00:10]} 41. Kg5 {[%clk 0:00:06]}  Nb3 {[%clk 0:00:06]} 42. Kxh5 {[%clk 0:00:05]}  c3 {[%clk 0:00:06]} 43. Bg5 {[%clk 0:00:04]}  c2 {[%clk 0:00:07]} 44. Kg6 {[%clk 0:00:04]}  c1=Q {[%clk 0:00:07]} 45. Bxc1 {[%clk 0:00:03]}  Nxc1 {[%clk 0:00:08]} 46. h5 {[%clk 0:00:03]}  Kc4 {[%clk 0:00:07]} 47. h6 {[%clk 0:00:04]}  Kb4 {[%clk 0:00:07]} 48. h7 {[%clk 0:00:03]}  Rb8 {[%clk 0:00:07]} 49. Ra1 {[%clk 0:00:03]}  Nb3 {[%clk 0:00:07]} 50. Rd1 {[%clk 0:00:03]}  a4 {[%clk 0:00:06]} 51. Rd7 {[%clk 0:00:03]}  a3 {[%clk 0:00:05]} 52. Rg7 {[%clk 0:00:03]}  a2 {[%clk 0:00:04]} 53. Rg8 {[%clk 0:00:03]}  Rxg8+ {[%clk 0:00:03]} 54. hxg8=Q {[%clk 0:00:04]}  a1=Q {[%clk 0:00:04]} 55. Qxe6 {[%clk 0:00:05]}  Qb2 {[%clk 0:00:03]} 56. Qd6+ {[%clk 0:00:04]}  Nc5 {[%clk 0:00:03]} 57. Qb6+ {[%clk 0:00:04]}  Ka4 {[%clk 0:00:01]} 58. Qa7+ {[%clk 0:00:03]}  Kb3 {[%clk 0:00:01]} 59. Qxc5 {[%clk 0:00:02]}  Ka2 {[%clk 0:00:01]} 60. Kf6 {[%clk 0:00:00]}  Kb1 {[%clk 0:00:02]} 0-1


[Site "https://www.chess.com"]

[Event "Titled Tuesday Blitz May 9 Early 2023"]
[White "Saya, Ethan"]
[Black "Rottenwohrer Suarez, Juan"]
[WhiteFideId "26095181"]
[BlackFideId "32068182"]
[WhiteElo "2164"]
[BlackElo "2174"]
[Result "0-1"]
[Round "05"]
[TimeControl "180+2"]
[Date "2023.05.09"]
[WhiteClock "0:00:17"]
[BlackClock "0:00:14"]

1. e4 {[%clk 0:03:00]}  c5 {[%clk 0:02:58]} 2. Nf3 {[%clk 0:02:52]}  g6 {[%clk 0:02:58]} 3. d4 {[%clk 0:02:19]}  cxd4 {[%clk 0:02:59]} 4. Qxd4 {[%clk 0:02:17]}  Nf6 {[%clk 0:02:59]} 5. e5 {[%clk 0:02:10]}  Nc6 {[%clk 0:02:58]} 6. Qf4 {[%clk 0:02:09]}  Nd5 {[%clk 0:02:58]} 7. Qe4 {[%clk 0:02:07]}  Nb6 {[%clk 0:02:59]} 8. Nc3 {[%clk 0:01:51]}  d5 {[%clk 0:02:55]} 9. exd6 {[%clk 0:01:47]}  Bf5 {[%clk 0:02:55]} 10. Qe2 {[%clk 0:01:40]}  Qxd6 {[%clk 0:02:51]} 11. Qd2 {[%clk 0:01:39]}  Qxd2+ {[%clk 0:02:38]} 12. Bxd2 {[%clk 0:01:39]}  Bg7 {[%clk 0:02:18]} 13. O-O-O {[%clk 0:01:38]}  O-O {[%clk 0:02:18]} 14. Bb5 {[%clk 0:01:33]}  Nb4 {[%clk 0:02:14]} 15. Ne1 {[%clk 0:01:29]}  Rac8 {[%clk 0:02:02]} 16. Nd3 {[%clk 0:01:23]}  Bxc3 {[%clk 0:01:26]} 17. bxc3 {[%clk 0:01:20]}  N4d5 {[%clk 0:01:20]} 18. Nf4 {[%clk 0:01:06]}  Nxc3 {[%clk 0:01:18]} 19. Bxc3 {[%clk 0:01:05]}  Rxc3 {[%clk 0:01:18]} 20. Bd3 {[%clk 0:01:05]}  Rfc8 {[%clk 0:01:01]} 21. Bxf5 {[%clk 0:01:01]}  gxf5 {[%clk 0:01:02]} 22. Rd2 {[%clk 0:00:59]}  Nc4 {[%clk 0:00:43]} 23. Re2 {[%clk 0:00:58]}  e6 {[%clk 0:00:43]} 24. Rd1 {[%clk 0:00:55]}  Ra3 {[%clk 0:00:39]} 25. Kb1 {[%clk 0:00:53]}  Rc7 {[%clk 0:00:19]} 26. Nh5 {[%clk 0:00:52]}  h6 {[%clk 0:00:19]} 27. Rd8+ {[%clk 0:00:49]}  Kh7 {[%clk 0:00:20]} 28. Nf6+ {[%clk 0:00:36]}  Kg6 {[%clk 0:00:18]} 29. Ne8 {[%clk 0:00:37]}  Rc6 {[%clk 0:00:16]} 30. Rd7 {[%clk 0:00:34]}  Rb6+ {[%clk 0:00:16]} 31. Kc1 {[%clk 0:00:20]}  Rxa2 {[%clk 0:00:16]} 32. c3 {[%clk 0:00:17]}  Rxe2 {[%clk 0:00:15]} 33. Nd6 {[%clk 0:00:17]}  Rxd6 {[%clk 0:00:14]} 0-1


[Site "https://www.chess.com"]

[Event "Titled Tuesday Blitz May 9 Early 2023"]
[White "Gomes, Luiz Alexandre de Souza"]
[Black "Skliarov, Viktor"]
[WhiteFideId "2102790"]
[BlackFideId "14106736"]
[WhiteElo "2393"]
[BlackElo "2317"]
[Result "0-1"]
[Round "05"]
[TimeControl "180+2"]
[Date "2023.05.09"]
[WhiteClock "0:00:00"]
[BlackClock "0:00:15"]

1. e4 {[%clk 0:03:00]}  c5 {[%clk 0:02:58]} 2. Nf3 {[%clk 0:03:00]}  Nc6 {[%clk 0:02:59]} 3. Bb5 {[%clk 0:02:59]}  e6 {[%clk 0:02:58]} 4. O-O {[%clk 0:02:58]}  Nge7 {[%clk 0:02:59]} 5. c3 {[%clk 0:02:58]}  a6 {[%clk 0:02:58]} 6. Be2 {[%clk 0:02:58]}  d5 {[%clk 0:02:50]} 7. d3 {[%clk 0:02:58]}  g6 {[%clk 0:02:47]} 8. Qc2 {[%clk 0:02:58]}  Bg7 {[%clk 0:02:47]} 9. Nbd2 {[%clk 0:02:59]}  O-O {[%clk 0:02:47]} 10. Re1 {[%clk 0:02:58]}  b5 {[%clk 0:02:45]} 11. Nf1 {[%clk 0:02:59]}  Qc7 {[%clk 0:02:45]} 12. Bg5 {[%clk 0:02:51]}  Bb7 {[%clk 0:02:29]} 13. Rad1 {[%clk 0:02:49]}  b4 {[%clk 0:02:21]} 14. Bh4 {[%clk 0:02:46]}  bxc3 {[%clk 0:01:53]} 15. bxc3 {[%clk 0:02:45]}  Qa5 {[%clk 0:01:54]} 16. Rc1 {[%clk 0:02:44]}  Rac8 {[%clk 0:01:40]} 17. Ne3 {[%clk 0:02:28]}  Ba8 {[%clk 0:01:38]} 18. Bf1 {[%clk 0:02:26]}  Rfe8 {[%clk 0:01:29]} 19. Ng4 {[%clk 0:02:11]}  c4 {[%clk 0:01:03]} 20. Nf6+ {[%clk 0:02:02]}  Bxf6 {[%clk 0:01:00]} 21. Bxf6 {[%clk 0:02:03]}  dxe4 {[%clk 0:00:54]} 22. dxe4 {[%clk 0:02:03]}  Qh5 {[%clk 0:00:51]} 23. Rcd1 {[%clk 0:01:56]}  Kf8 {[%clk 0:00:48]} 24. Bxc4 {[%clk 0:01:47]}  Ng8 {[%clk 0:00:48]} 25. e5 {[%clk 0:01:30]}  Nxf6 {[%clk 0:00:46]} 26. exf6 {[%clk 0:01:31]}  Na5 {[%clk 0:00:40]} 27. Bxa6 {[%clk 0:01:28]}  Bxf3 {[%clk 0:00:24]} 28. gxf3 {[%clk 0:00:56]}  Rc5 {[%clk 0:00:22]} 29. Qe4 {[%clk 0:00:37]}  Qg5+ {[%clk 0:00:18]} 30. Kh1 {[%clk 0:00:35]}  Qxf6 {[%clk 0:00:18]} 31. Bf1 {[%clk 0:00:23]}  Kg7 {[%clk 0:00:17]} 32. c4 {[%clk 0:00:20]}  Rec8 {[%clk 0:00:17]} 33. Rd4 {[%clk 0:00:20]}  Rf5 {[%clk 0:00:13]} 34. Bg2 {[%clk 0:00:19]}  Nc6 {[%clk 0:00:14]} 35. Rd7 {[%clk 0:00:19]}  Re5 {[%clk 0:00:14]} 36. Qb1 {[%clk 0:00:18]}  Rxe1+ {[%clk 0:00:14]} 37. Qxe1 {[%clk 0:00:19]}  Ne5 {[%clk 0:00:14]} 38. Rd4 {[%clk 0:00:17]}  Rxc4 {[%clk 0:00:14]} 39. Rxc4 {[%clk 0:00:17]}  Nxc4 {[%clk 0:00:15]} 40. Qe4 {[%clk 0:00:00]}  Qa1+ {[%clk 0:00:15]} 0-1


[Site "https://www.chess.com"]

[Event "Titled Tuesday Blitz May 9 Early 2023"]
[White "Vlassov, Nikolai"]
[Black "micke12a"]
[WhiteFideId "4103360"]
[WhiteElo "2324"]
[BlackElo "2381"]
[Result "1/2-1/2"]
[Round "05"]
[TimeControl "180+2"]
[Date "2023.05.09"]
[WhiteClock "0:00:15"]
[BlackClock "0:00:14"]

1. e4 {[%clk 0:03:00]}  c5 {[%clk 0:02:58]} 2. c3 {[%clk 0:03:00]}  e6 {[%clk 0:02:53]} 3. d4 {[%clk 0:03:00]}  cxd4 {[%clk 0:02:52]} 4. cxd4 {[%clk 0:03:00]}  d5 {[%clk 0:02:51]} 5. e5 {[%clk 0:03:00]}  Bb4+ {[%clk 0:02:51]} 6. Nc3 {[%clk 0:03:00]}  Ne7 {[%clk 0:02:51]} 7. Qg4 {[%clk 0:02:52]}  O-O {[%clk 0:02:44]} 8. Bd3 {[%clk 0:02:51]}  Nf5 {[%clk 0:02:22]} 9. Nf3 {[%clk 0:02:45]}  Nc6 {[%clk 0:02:17]} 10. O-O {[%clk 0:02:43]}  f6 {[%clk 0:01:51]} 11. exf6 {[%clk 0:02:26]}  Qxf6 {[%clk 0:01:49]} 12. Bg5 {[%clk 0:02:25]}  Qg6 {[%clk 0:01:47]} 13. h4 {[%clk 0:02:18]}  h5 {[%clk 0:01:42]} 14. Qh3 {[%clk 0:02:13]}  Qf7 {[%clk 0:01:38]} 15. Ne2 {[%clk 0:02:02]}  Bd7 {[%clk 0:01:30]} 16. Bxf5 {[%clk 0:01:27]}  Qxf5 {[%clk 0:01:26]} 17. Qxf5 {[%clk 0:01:26]}  Rxf5 {[%clk 0:01:24]} 18. Ng3 {[%clk 0:01:26]}  Rxf3 {[%clk 0:01:16]} 19. gxf3 {[%clk 0:01:26]}  Nxd4 {[%clk 0:01:17]} 20. Kg2 {[%clk 0:01:26]}  g6 {[%clk 0:01:17]} 21. Rad1 {[%clk 0:01:20]}  Nc6 {[%clk 0:01:14]} 22. Ne2 {[%clk 0:01:14]}  Rf8 {[%clk 0:01:08]} 23. Be3 {[%clk 0:01:02]}  Bd6 {[%clk 0:01:01]} 24. Rg1 {[%clk 0:00:58]}  Kg7 {[%clk 0:00:54]} 25. Nd4 {[%clk 0:00:51]}  e5 {[%clk 0:00:41]} 26. Nxc6 {[%clk 0:00:45]}  Bxc6 {[%clk 0:00:41]} 27. Bg5 {[%clk 0:00:18]}  d4 {[%clk 0:00:37]} 28. Rd3 {[%clk 0:00:18]}  Bc5 {[%clk 0:00:25]} 29. Re1 {[%clk 0:00:17]}  a5 {[%clk 0:00:21]} 30. Kg3 {[%clk 0:00:17]}  Bd6 {[%clk 0:00:20]} 31. Kg2 {[%clk 0:00:16]}  Bb5 {[%clk 0:00:16]} 32. Rb3 {[%clk 0:00:15]}  Bc6 {[%clk 0:00:17]} 33. a3 {[%clk 0:00:14]}  a4 {[%clk 0:00:14]} 34. Rd3 {[%clk 0:00:14]}  Bb5 {[%clk 0:00:14]} 35. Rd2 {[%clk 0:00:14]}  Bc6 {[%clk 0:00:14]} 36. Rd3 {[%clk 0:00:14]}  Bb5 {[%clk 0:00:13]} 37. Rd2 {[%clk 0:00:15]}  Bc6 {[%clk 0:00:14]} 38. Rd3 {[%clk 0:00:15]} 1/2-1/2


[Site "https://www.chess.com"]

[Event "Titled Tuesday Blitz May 9 Early 2023"]
[White "Sreyas Payyappat"]
[Black "Kirillov, Dmitry"]
[WhiteFideId "46674969"]
[BlackFideId "34180572"]
[WhiteElo "2043"]
[BlackElo "2161"]
[Result "1/2-1/2"]
[Round "05"]
[TimeControl "180+2"]
[Date "2023.05.09"]
[WhiteClock "0:00:12"]
[BlackClock "0:00:57"]

1. e4 {[%clk 0:03:00]}  c6 {[%clk 0:02:55]} 2. d4 {[%clk 0:03:00]}  d5 {[%clk 0:02:56]} 3. Nc3 {[%clk 0:03:00]}  dxe4 {[%clk 0:02:56]} 4. Nxe4 {[%clk 0:03:00]}  Nf6 {[%clk 0:02:56]} 5. Nxf6+ {[%clk 0:03:00]}  exf6 {[%clk 0:02:57]} 6. Bc4 {[%clk 0:03:00]}  Bd6 {[%clk 0:02:57]} 7. Qe2+ {[%clk 0:02:59]}  Qe7 {[%clk 0:02:57]} 8. Qxe7+ {[%clk 0:02:58]}  Kxe7 {[%clk 0:02:58]} 9. Ne2 {[%clk 0:02:55]}  Be6 {[%clk 0:02:58]} 10. Bd3 {[%clk 0:02:55]}  Nd7 {[%clk 0:02:56]} 11. O-O {[%clk 0:02:54]}  Rhe8 {[%clk 0:02:55]} 12. Bf4 {[%clk 0:02:53]}  g6 {[%clk 0:02:51]} 13. Rfe1 {[%clk 0:02:52]}  Rad8 {[%clk 0:02:50]} 14. c4 {[%clk 0:02:51]}  Nf8 {[%clk 0:02:45]} 15. d5 {[%clk 0:02:45]}  cxd5 {[%clk 0:02:20]} 16. cxd5 {[%clk 0:02:46]}  Bxd5 {[%clk 0:02:20]} 17. Nc3+ {[%clk 0:02:45]}  Be6 {[%clk 0:02:19]} 18. Nd5+ {[%clk 0:02:43]}  Kd7 {[%clk 0:02:17]} 19. Nxf6+ {[%clk 0:02:35]}  Kc8 {[%clk 0:01:29]} 20. Rac1+ {[%clk 0:02:28]}  Kb8 {[%clk 0:01:29]} 21. Bxd6+ {[%clk 0:02:25]}  Rxd6 {[%clk 0:01:30]} 22. Nxe8 {[%clk 0:02:22]}  Rxd3 {[%clk 0:01:30]} 23. Red1 {[%clk 0:02:15]}  Rxd1+ {[%clk 0:01:29]} 24. Rxd1 {[%clk 0:02:16]}  Nd7 {[%clk 0:01:28]} 25. Ng7 {[%clk 0:02:15]}  Kc7 {[%clk 0:01:27]} 26. Nxe6+ {[%clk 0:02:15]}  fxe6 {[%clk 0:01:28]} 27. f4 {[%clk 0:02:13]}  Nb6 {[%clk 0:01:26]} 28. Kf2 {[%clk 0:02:11]}  Nd5 {[%clk 0:01:27]} 29. Kf3 {[%clk 0:02:10]}  Kd6 {[%clk 0:01:28]} 30. Ke4 {[%clk 0:02:09]}  a5 {[%clk 0:01:26]} 31. g4 {[%clk 0:02:09]}  b5 {[%clk 0:01:23]} 32. f5 {[%clk 0:02:09]}  gxf5+ {[%clk 0:01:22]} 33. gxf5 {[%clk 0:02:10]}  exf5+ {[%clk 0:01:21]} 34. Kxf5 {[%clk 0:02:10]}  Kc5 {[%clk 0:01:19]} 35. Ke5 {[%clk 0:02:09]}  Ne3 {[%clk 0:01:18]} 36. Rc1+ {[%clk 0:02:05]}  Nc4+ {[%clk 0:01:17]} 37. Ke4 {[%clk 0:02:05]}  Kb4 {[%clk 0:01:15]} 38. b3 {[%clk 0:01:57]}  Nd2+ {[%clk 0:01:15]} 39. Ke3 {[%clk 0:01:55]}  Nxb3 {[%clk 0:01:15]} 40. Rb1 {[%clk 0:01:53]}  a4 {[%clk 0:01:12]} 41. axb3 {[%clk 0:01:50]}  a3 {[%clk 0:01:12]} 42. Kd4 {[%clk 0:00:37]}  a2 {[%clk 0:01:11]} 43. Rg1 {[%clk 0:00:15]}  Kxb3 {[%clk 0:01:12]} 44. Kc5 {[%clk 0:00:15]}  b4 {[%clk 0:01:09]} 45. Rg3+ {[%clk 0:00:13]}  Kb2 {[%clk 0:01:09]} 46. Kxb4 {[%clk 0:00:13]}  a1=Q {[%clk 0:01:07]} 47. Rg2+ {[%clk 0:00:13]}  Kb1 {[%clk 0:01:07]} 48. Rg1+ {[%clk 0:00:14]}  Kb2 {[%clk 0:01:07]} 49. Rxa1 {[%clk 0:00:15]}  Kxa1 {[%clk 0:01:08]} 50. h4 {[%clk 0:00:09]}  Kb2 {[%clk 0:01:00]} 51. h5 {[%clk 0:00:07]}  h6 {[%clk 0:01:00]} 52. Kc4 {[%clk 0:00:07]}  Kc2 {[%clk 0:00:58]} 53. Kd4 {[%clk 0:00:07]}  Kd2 {[%clk 0:00:58]} 54. Ke4 {[%clk 0:00:07]}  Kc3 {[%clk 0:00:55]} 55. Kf5 {[%clk 0:00:07]}  Kd4 {[%clk 0:00:54]} 56. Kg6 {[%clk 0:00:08]}  Ke5 {[%clk 0:00:55]} 57. Kxh6 {[%clk 0:00:08]}  Kf6 {[%clk 0:00:56]} 58. Kh7 {[%clk 0:00:09]}  Kf7 {[%clk 0:00:56]} 59. h6 {[%clk 0:00:09]}  Kf8 {[%clk 0:00:56]} 60. Kg6 {[%clk 0:00:10]}  Kg8 {[%clk 0:00:56]} 61. h7+ {[%clk 0:00:11]}  Kh8 {[%clk 0:00:57]} 62. Kh6 {[%clk 0:00:12]} 1/2-1/2


[Site "https://www.chess.com"]